Workbook

Sheet Index
A1: Data - Core Crown Expense Tables - Budget Economic and Fiscal Update 2026
A2: Published 28 May 2026
A5: Published by the New Zealand Treasury at:
A6: https://treasury.govt.nz/publications/efu/budget-economic-and-fiscal-update-2026
A7: https://budget.govt.nz/budget/forecasts/befu2026.htm
A9: This spreadsheet contains the tables that appear in chapter 5 of the Budget Economic and Fiscal Update 2026.
A12: Crown copyright ©
A14: This copyright work is licensed under the Creative Commons Attribution 4.0 International licence. In essence, you are free to copy, distribute and adapt the work, as long as you attribute the work to the Crown and abide by the other licence terms.
A15: To view a copy of this licence, visit https://creativecommons.org/licenses/by/4.0/. Please note that no departmental or governmental emblem, logo or Coat of Arms may be used in any way which infringes any provision of the Flags, Emblems, and Names Protection Act 1981 or would infringe such provision if the relevant use occurred within New Zealand. Attribution to the Crown should be in written form and not by reproduction of any such emblem, logo or Coat of Arms.

Sheet Core Crown Expense Tables
F5: 2021 | G5: 2022 | H5: 2023 | I5: 2024 | J5: 2025 | K5: 2026 | L5: 2027 | M5: 2028 | N5: 2029 | O5: 2030
D6: ($millions) | F6: Actual | G6: Actual | H6: Actual | I6: Actual | J6: Actual | K6: Forecast | L6: Forecast | M6: Forecast | N6: Forecast | O6: Forecast
D8: Social security and welfare | F8: 36759 | G8: 42860 | H8: 41514 | I8: 44589 | J8: 47503 | K8: 50451 | L8: 53497 | M8: 55072 | N8: 56184 | O8: 57813 | P8: 47503
D9: Health | F9: 22784 | G9: 27781 | H9: 28489 | I9: 29999 | J9: 30311 | K9: 33210 | L9: 34196 | M9: 34083 | N9: 34197 | O9: 34268
D10: Education | F10: 16039 | G10: 18023 | H10: 18403 | I10: 20223 | J10: 20895 | K10: 21540 | L10: 22444 | M10: 22264 | N10: 21962 | O10: 21780
D11: Core government services | F11: 5754 | G11: 5720 | H11: 6806 | I11: 8468 | J11: 7908 | K11: 6597 | L11: 6632 | M11: 6339 | N11: 6295 | O11: 6304
D12: Law and order | F12: 5202 | G12: 5444 | H12: 6165 | I12: 6527 | J12: 6734 | K12: 7282 | L12: 7621 | M12: 7430 | N12: 7283 | O12: 7275
D13: Transport and communications | F13: 5656 | G13: 4657 | H13: 5472 | I13: 5487 | J13: 5472 | K13: 6074 | L13: 5110 | M13: 5407 | N13: 5648 | O13: 5601
D14: Economic and industrial services | F14: 4481 | G14: 8078 | H14: 3690 | I14: 4010 | J14: 3514 | K14: 3501 | L14: 3445 | M14: 3114 | N14: 3285 | O14: 3310
D15: Defence | F15: 2664 | G15: 2832 | H15: 2886 | I15: 3163 | J15: 3271 | K15: 3597 | L15: 3834 | M15: 3838 | N15: 3889 | O15: 3893
D16: Heritage, culture and recreation | F16: 1420 | G16: 1468 | H16: 1537 | I16: 1504 | J16: 1457 | K16: 1442 | L16: 1440 | M16: 1412 | N16: 1387 | O16: 1374
D17: Primary services | F17: 1015 | G17: 949 | H17: 1156 | I17: 1062 | J17: 996 | K17: 1301 | L17: 1204 | M17: 1125 | N17: 1112 | O17: 1166
D18: Housing and community development | F18: 1813 | G18: 2033 | H18: 2312 | I18: 2512 | J18: 2150 | K18: 2212 | L18: 2005 | M18: 1900 | N18: 1995 | O18: 1736
D19: Environmental protection | F19: 1906 | G19: 2549 | H19: 2381 | I19: 2297 | J19: 2410 | K19: 2382 | L19: 2421 | M19: 2317 | N19: 2284 | O19: 2201
D20: GSF pension expenses | F20: 99 | G20: 94 | H20: 61 | I20: 69 | J20: 65 | K20: 50 | L20: 58 | M20: 56 | N20: 54 | O20: 52
D21: Other | F21: 254 | G21: 269 | H21: 133 | I21: 145 | J21: 127 | K21: 239 | L21: 161 | M21: 314 | N21: 310 | O21: 310
D22: Finance costs | F22: 1918 | G22: 2884 | H22: 6569 | I22: 8943 | J22: 8862 | K22: 9061 | L22: 10196 | M22: 11572 | N22: 12777 | O22: 13910
D23: Forecast new operating spending | F23: 0 | G23: 0 | H23: 0 | I23: 0 | J23: 0 | K23: 0 | L23: 1959 | M23: 3145 | N23: 4705 | O23: 7499
D24: Top-down operating expense adjustment | F24: 0 | G24: 0 | H24: 0 | I24: 0 | J24: 0 | K24: -1700 | L24: -1400 | M24: -600 | N24: -600 | O24: -600
D26: Core Crown expenses | F26: =SUM(F8:F24) -> 107764 | G26: 125641 | H26: =SUM(H8:H24) -> 127574 | I26: 138998 | J26: =SUM(J8:J24) -> 141675 | K26: =SUM(K8:K24) -> 147239 | L26: 154823 | M26: 158788 | N26: =SUM(N8:N24) -> 162767 | O26: 167892
D29: The classifications of the functions of the Government reflect current approved baselines. Forecast new operating spending is shown as a separate line item in the above analysis and will be allocated to
D30: functions of the Government once decisions are made in future Budgets.
D32: Source: The Treasury
A34: Table 5.1 | D34: Social security and welfare expenses
F35: =F5 -> 2021 | G35: 2022 | H35: 2023 | I35: 2024 | J35: 2025 | K35: 2026 | L35: 2027 | M35: 2028 | N35: 2029 | O35: 2030
D36: ($millions) | F36: Actual | G36: Actual | H36: Actual | I36: Actual | J36: =J6 -> Actual | K36: Forecast | L36: Forecast | M36: Forecast | N36: Forecast | O36: Forecast
D38: Welfare benefits (see below)1,2 | F38: 33671 | G38: 39187 | H38: 37576 | I38: 40294 | J38: 43525 | K38: 46244 | L38: 48944 | M38: 50614 | N38: 51799 | O38: 53705 | P38: 49084
D39: Departmental expenses | F39: 2424 | G39: 2747 | H39: 2782 | I39: 3013 | J39: 2782 | K39: 3033 | L39: 3260 | M39: 3203 | N39: 3143 | O39: 2815 | P39: 2636
D40: Social rehabilitation and compensation | F40: 333 | G40: 358 | H40: 386 | I40: 415 | J40: 447 | K40: 481 | L40: 516 | M40: 555 | N40: 597 | O40: 642 | P40: 553
D41: Flexi-wage subsidy | F41: 8 | G41: 59 | H41: 52 | I41: 25 | J41: 27 | K41: 0 | L41: 0 | M41: 0 | N41: 0 | O41: 0 | P41: 0
D42: COVID-19 Income Relief Assistance | F42: 182 | G42: 0 | H42: 0 | I42: 0 | K42: 0 | L42: 0 | M42: 0 | N42: 0 | O42: 0 | P42: 0
D43: Other non-departmental expenses1,2 | F43: 141 | G43: 509 | H43: 718 | I43: 842 | J43: 722 | K43: 693 | L43: 777 | M43: 700 | N43: 645 | O43: 651 | P43: 626
D45: Social security and welfare expenses | F45: =SUM(F38:F43) -> 36759 | G45: 42860 | H45: 41514 | I45: 44589 | J45: 47503 | K45: 50451 | L45: 53497 | M45: 55072 | N45: =SUM(N38:N43) -> 56184 | O45: =SUM(O38:O43) -> 57813 | P45: 37369
D47: 1. The '2023 Actual' has been restated to include expenses previously classified as other benefits within the welfare benefit expenses table below.
D48: 2. The '2025 Actual' has been restated to exclude expenses previously classified as other benefits within the welfare benefit expenses table below.
D50: Source: The Treasury
A52: Table 5.2 | D52: Welfare benefit expenses
F53: =F$35 -> 2021 | G53: 2022 | H53: 2023 | I53: 2024 | J53: 2025 | K53: 2026 | L53: 2027 | M53: 2028 | N53: 2029 | O53: 2030
D54: ($millions) | F54: Actual | G54: Actual | H54: Actual | I54: Actual | J54: =J36 -> Actual | K54: Forecast | L54: Forecast | M54: Forecast | N54: Forecast | O54: Forecast
D56: New Zealand Superannuation | F56: 16569 | G56: 17764 | H56: 19517 | I56: 21574 | J56: 23191 | K56: 24730 | L56: 26481 | M56: 28324 | N56: 29715 | O56: 31207 | P56: 19798
D57: Jobseeker Support and Emergency Benefit | F57: 3224 | G57: 3330 | H57: 3473 | I57: 4062 | J57: 4641 | K57: 4944 | L57: 5018 | M57: 4940 | N57: 4807 | O57: 4902 | P57: 2328
D58: Supported Living Payment | F58: 1826 | G58: 2047 | H58: 2311 | I58: 2530 | J58: 2668 | K58: 2830 | L58: 3023 | M58: 3199 | N58: 3295 | O58: 3437 | P58: 1845
D59: Sole Parent Support | F59: 1455 | G59: 1704 | H59: 1917 | I59: 2097 | J59: 2255 | K59: 2390 | L59: 2474 | M59: 2408 | N59: 2236 | O59: 2233 | P59: 1396
D60: Family Tax Credit | F60: 2103 | G60: 2017 | H60: 2151 | I60: 2297 | J60: 2434 | K60: 2449 | L60: 2585 | M60: 2619 | N60: 2700 | O60: 2653 | P60: 2164
D61: Other Working for Families tax credits | F61: 585 | G61: 519 | H61: 476 | I61: 448 | J61: 561 | K61: 656 | L61: 852 | M61: 629 | N61: 602 | O61: 576 | P61: 624
D62: Accommodation Assistance | F62: 2302 | G62: 2386 | H62: 2349 | I62: 2411 | J62: 2232 | K62: 2308 | L62: 2322 | M62: 2400 | N62: 2260 | O62: 2286 | P62: 2049
D63: Income-Related Rents | F63: 1202 | G63: 1323 | H63: 1322 | I63: 1517 | J63: 1752 | K63: 1800 | L63: 1893 | M63: 1888 | N63: 1885 | O63: 1940 | P63: 1316
D64: Disability Assistance | F64: 409 | G64: 412 | H64: 431 | I64: 464 | J64: 492 | K64: 518 | L64: 533 | M64: 541 | N64: 538 | O64: 543 | P64: 400
D65: Winter Energy Payment | F65: 812 | G65: 513 | H65: 519 | I65: 537 | J65: 562 | K65: 583 | L65: 595 | M65: 600 | N65: 609 | O65: 620 | P65: 505
D66: Best start | F66: 271 | G66: 308 | H66: 321 | I66: 336 | J66: 346 | K66: 327 | L66: 286 | M66: 275 | N66: 281 | O66: 274 | P66: 477
D67: Orphan's/Unsupported Child's Benefit | F67: 293 | G67: 313 | H67: 350 | I67: 384 | J67: 402 | K67: 417 | L67: 430 | M67: 444 | N67: 450 | O67: 456 | P67: 324
D68: Hardship Assistance | F68: 479 | G68: 497 | H68: 673 | I68: 667 | J68: 755 | K68: 816 | L68: 835 | M68: 751 | N68: 748 | O68: 785 | P68: 503
D69: Paid Parental Leave | F69: 503 | G69: 603 | H69: 608 | I69: 647 | J69: 709 | K69: 745 | L69: 785 | M69: 825 | N69: 865 | O69: 910 | P69: 530
D70: Childcare Assistance | F70: 145 | G70: 132 | H70: 139 | I70: 165 | J70: 167 | K70: 159 | L70: 167 | M70: 177 | N70: 179 | O70: 185 | P70: 189
D71: FamilyBoost tax credit | F71: 0 | G71: 0 | H71: 0 | I71: 0 | J71: 51 | K71: 140 | L71: 168 | M71: 166 | N71: 163 | O71: 163
D72: Veteran's Pension | F72: 139 | G72: 134 | H72: 132 | I72: 132 | J72: 132 | K72: 132 | L72: 132 | M72: 133 | N72: 131 | O72: 130 | P72: 110
D73: Emergency Housing Assistance1 | F73: 0 | G73: 0 | H73: 0 | I73: 0 | J73: 74 | K73: 40 | L73: 44 | M73: 59 | N73: 66 | O73: 68
D74: Wage Subsidy Scheme | F74: 1197 | G74: 4689 | H74: 0 | I74: 1 | J74: 0 | K74: 0 | L74: 0 | M74: 0 | N74: 0 | O74: 0
D75: Cost of living payment | F75: 0 | G75: 0 | H75: 600 | I75: 0 | J75: 0 | K75: 0 | L75: 0 | M75: 0 | N75: 0 | O75: 0
D76: Covid leave support | F76: 0 | G76: 471 | H76: 273 | I76: 13 | J76: 0 | K76: 0 | L76: 0 | M76: 0 | N76: 0 | O76: 0
D77: Other benefits2,3,4 | F77: 157 | G77: 25 | H77: 14 | I77: 12 | J77: 101 | K77: 260 | L77: 321 | M77: 236 | N77: 269 | O77: 337 | P77: 31
D79: Benefit expenses | F79: =SUM(F56:F78) -> 33671 | G79: 39187 | H79: 37576 | I79: 40294 | J79: 43525 | K79: 46244 | L79: 48944 | M79: 50614 | N79: 51799 | O79: 53705 | P79: 34658
D81: 1. Previously included within Accommodation Assistance.
D82: 2. The '2021 Actual' for other benefits include costs in relation to the Government's response to COVID-19.
D83: 3. The '2023 Actual' has been restated to reclassify expenses from other benefits to other non-departmental expenses within the social security and welfare expenses table above.
D84: 4. The '2025 Actual' has been restated to reclassify expenses from other non-departmental expenses to other benefits within the social security and welfare expenses table above.
D86: Source: The Treasury
D88: Beneficiary numbers1 | F88: =F$35 -> 2021 | G88: 2022 | H88: 2023 | I88: 2024 | J88: 2025 | K88: 2026 | L88: 2027 | M88: 2028 | N88: 2029 | O88: 2030
D89: (Thousands) | F89: Actual | G89: Actual | H89: Actual | I89: Actual | J89: =$J$54 -> Actual | K89: Forecast | L89: Forecast | M89: Forecast | N89: Forecast | O89: Forecast
D91: New Zealand Superannuation | F91: 825 | G91: 848 | H91: 870 | I91: 899 | J91: 928 | K91: 959 | L91: 991 | M91: 1024 | N91: 1055 | O91: 1083
D92: Jobseeker Support and Emergency Benefit | F92: 211 | G92: 193 | H92: 177 | I92: 194 | J92: 217 | K92: 227 | L92: 222 | M92: 212 | N92: 207 | O92: 206
D93: Supported living payment | F93: 97 | G93: 98 | H93: 103 | I93: 105 | J93: 108 | K93: 111 | L93: 115 | M93: 117 | N93: 120 | O93: 122
D94: Sole parent support | F94: 66 | G94: 70 | H94: 73 | I94: 76 | J94: 79 | K94: 81 | L94: 81 | M94: 76 | N94: 73 | O94: 71
D95: Accommodation Supplement | F95: 364 | G95: 353 | H95: 347 | I95: 358 | J95: 377 | K95: 383 | L95: 376 | M95: 367 | N95: 364 | O95: 365
D97: 1. Actual numbers have been reclassified so may differ from previous published Economic and Fiscal Update numbers.
D99: Source: Ministry of Social Development
A101: Table 5.3 | D101: Health expenses
F102: =F$35 -> 2021 | G102: 2022 | H102: 2023 | I102: 2024 | J102: 2025 | K102: 2026 | L102: 2027 | M102: 2028 | N102: 2029 | O102: 2030
D103: ($millions) | F103: Actual | G103: Actual | H103: Actual | I103: Actual | J103: =J89 -> Actual | K103: Forecast | L103: Forecast | M103: Forecast | N103: Forecast | O103: Forecast
D105: Departmental outputs | F105: 298 | G105: 386 | H105: 222 | I105: 265 | J105: 222 | K105: 211 | L105: 223 | M105: 211 | N105: 210 | O105: 219 | P105: 213
D106: Purchasing of health services1,5 | F106: 16837 | G106: 17727 | H106: 21363 | I106: 23712 | J106: 24320 | K106: 26778 | L106: 27186 | M106: 27173 | N106: 27182 | O106: 27099 | P106: 17691
D107: National disability support services4 | F107: 1659 | G107: 1870 | H107: 2062 | I107: 2340 | J107: 2425 | K107: 2595 | L107: 2964 | M107: 2788 | N107: 2788 | O107: 2788
D108: National Pharmaceuticals Purchasing2 | F108: 1045 | G108: 1085 | H108: 1186 | I108: 1806 | J108: 1690 | K108: 1760 | L108: 1807 | M108: 1808 | N108: 1808 | O108: 1808
D109: Other non-departmental outputs4 | F109: 623 | G109: 770 | H109: 583 | I109: 612 | J109: 619 | K109: 593 | L109: 669 | M109: 658 | N109: 684 | O109: 715 | P109: 543
D110: Health payments to ACC | F110: 1038 | G110: 896 | H110: 952 | I110: 1010 | J110: 1026 | K110: 1221 | L110: 1312 | M110: 1411 | N110: 1517 | O110: 1631 | P110: 881
D111: National health response to COVID-193 | F111: 1261 | G111: 4965 | H111: 2112 | I111: 247 | J111: 0 | K111: 0 | L111: 0 | M111: 0 | N111: 0 | O111: 0 | P111: 38
D112: Other expenses | F112: 23 | G112: 82 | H112: 9 | I112: 7 | J112: 9 | K112: 52 | L112: 35 | M112: 34 | N112: 8 | O112: 8 | P112: 38
D114: Health expenses | F114: =SUM(F105:F113) -> 22784 | G114: 27781 | H114: 28489 | I114: 29999 | J114: 30311 | K114: 33210 | L114: 34196 | M114: 34083 | N114: =SUM(N105:N113) -> 34197 | O114: 34268
D116: 1. Reforms to the NZ health system took place from 1 July 2022 with the regional DHB systems replaced by a national health system.
D117: 2. Previously included in purchasing of health services.
D118: 3. This line includes spending in relation to vaccines, managed isolation and quarantine as well as other COVID-19 response costs.
D119: 4. The '2025 Actual' has been restated to reclassify expenses from national disability support services to other non-departmental outputs.
D120: 5. From 2026/27 onwards, funding to Health New Zealand for capital charge costs are excluded as it is now exempt from the regime. This change is fiscally neutral to the Crown as this reduction in
D121: expense also results in a reduction to revenue. It does not reflect a change in the funding the health system has available for health infrastructure development or service delivery.
D123: Source: The Treasury
A125: Table 5.4 | D125: Education expenses
F126: =F$35 -> 2021 | G126: 2022 | H126: 2023 | I126: 2024 | J126: 2025 | K126: 2026 | L126: 2027 | M126: 2028 | N126: 2029 | O126: 2030
D127: ($millions) | F127: Actual | G127: Actual | H127: Actual | I127: Actual | J127: =$J$54 -> Actual | K127: Forecast | L127: Forecast | M127: Forecast | N127: Forecast | O127: Forecast
D129: Early childhood education | F129: 2132 | G129: 2247 | H129: 2355 | I129: 2710 | J129: 3074 | K129: 3062 | L129: 3074 | M129: 3138 | N129: 3195 | O129: 3229
D130: Primary and secondary schools (see below) | F130: 8230 | G130: 8478 | H130: 8616 | I130: 9741 | J130: 9950 | K130: 10495 | L130: 11218 | M130: 11209 | N130: 11035 | O130: 10998
D131: Tertiary funding (see below) | F131: 3519 | G131: 4804 | H131: 4663 | I131: 5014 | J131: 5171 | K131: 5321 | L131: 5437 | M131: 5377 | N131: 5281 | O131: 5287
D132: Departmental expenses | F132: 1656 | G132: 1962 | H132: 2188 | I132: 2513 | J132: 2576 | K132: 2522 | L132: 2546 | M132: 2443 | N132: 2356 | O132: 2170
D133: COVID-19 apprentice support | F133: 156 | G133: 255 | H133: 141 | I133: 90 | J133: 48 | K133: 23 | L133: 26 | M133: 26 | N133: 26 | O133: 26
D134: Other education expenses1 | F134: 346 | G134: 277 | H134: 440 | I134: 155 | J134: 76 | K134: 117 | L134: 143 | M134: 71 | N134: 69 | O134: 70
D136: Education expenses | F136: =SUM(F129:F135) -> 16039 | G136: 18023 | H136: 18403 | I136: 20223 | J136: 20895 | K136: 21540 | L136: 22444 | M136: 22264 | N136: =SUM(N129:N135) -> 21962 | O136: 21780
D138: 1. Includes training incentive allowance.
D140: Source: The Treasury
F141: =F$35 -> 2021 | G141: 2022 | H141: 2023 | I141: =I$35 -> 2024 | J141: 2025 | K141: 2026 | L141: 2027 | M141: 2028 | N141: 2029 | O141: 2030
D142: Number of places provided1 | F142: Actual | G142: Actual | H142: Actual | I142: Actual | J142: =$J$54 -> Actual | K142: Forecast | L142: Forecast | M142: Forecast | N142: Forecast | O142: Forecast
D144: Early childhood education | F144: 225192.137 | G144: 220742 | H144: 224043 | I144: 229654 | J144: 230405 | K144: 233313 | L144: 236300 | M144: 240858 | N144: 244191 | O144: 246430
D146: 1. Full-time equivalent based on 1,000 funded child hours per calendar year.
D147: Historical place numbers have been revised so may differ from previous published Economic and Fiscal Update numbers.
D148: The '2025 Actual' figures are based on the calendar year and are a combination of actual and forecast place numbers.
D150: Source: The Ministry of Education
A152: Table 5.5 | D152: Primary and secondary schools
F153: =F$35 -> 2021 | G153: 2022 | H153: 2023 | I153: 2024 | J153: 2025 | K153: 2026 | L153: 2027 | M153: 2028 | N153: 2029 | O153: 2030
D154: ($millions) | F154: Actual | G154: Actual | H154: Actual | I154: Actual | J154: =$J$54 -> Actual | K154: Forecast | L154: Forecast | M154: Forecast | N154: Forecast | O154: Forecast
D156: Primary | F156: 4107 | G156: 4122 | H156: 4116 | I156: 4656 | J156: 4794 | K156: 5055 | L156: 0 | M156: 0 | N156: 0 | O156: 0
D157: Secondary | F157: 3043 | G157: 3135 | H157: 3174 | I157: 3617 | J157: 3693 | K157: 3979 | L157: 0 | M157: 0 | N157: 0 | O157: 0
D158: School transport | F158: 216 | G158: 210 | H158: 235 | I158: 255 | J158: 263 | K158: 270 | L158: 0 | M158: 0 | N158: 0 | O158: 0
D159: Professional development | F159: 104 | G159: 129 | H159: 128 | I159: 129 | J159: 130 | K159: 112 | L159: 0 | M159: 0 | N159: 0 | O159: 0
D160: Schooling improvement | F160: 25 | G160: 20 | H160: 23 | I160: 34 | J160: 24 | K160: 33 | L160: 0 | M160: 0 | N160: 0 | O160: 0
D161: School lunch programme | F161: 94 | G161: 204 | H161: 267 | I161: 285 | J161: 246 | K161: 198 | L161: 0 | M161: 0 | N161: 0 | O161: 0
D162: Learning support2 | F162: 641 | G162: 658 | H162: 673 | I162: 765 | J162: 800 | K162: 848 | L162: 561 | M162: 598 | N162: 625 | O162: 633
D163: Teachers, leaders and governance1 | F163: 0 | G163: 0 | H163: 0 | I163: 0 | J163: 0 | K163: 0 | L163: 6839 | M163: 6925 | N163: 6846 | O163: 6804
D164: Access to education1 | F164: 0 | G164: 0 | H164: 0 | I164: 0 | J164: 0 | K164: 0 | L164: 854 | M164: 743 | N164: 641 | O164: 641
D165: System stewardship and operational management1 | F165: 0 | G165: 0 | H165: 0 | I165: 0 | J165: 0 | K165: 0 | L165: 2964 | M165: 2943 | N165: 2923 | O165: 2920
D167: Primary and secondary education expenses | F167: =SUM(F156:F166) -> 8230 | G167: 8478 | H167: 8616 | I167: 9741 | J167: 9950 | K167: 10495 | L167: 11218 | M167: 11209 | N167: 11035 | O167: 10998
D169: 1. The Ministry of Education have restructured their appropriations from 2026/27.
D170: 2. Renamed from 'Special needs support' to 'Learning support'
D172: Source: The Treasury
F173: =F$35 -> 2021 | G173: 2022 | H173: 2023 | I173: 2024 | J173: 2025 | K173: 2026 | L173: 2027 | M173: 2028 | N173: 2029 | O173: 2030
D174: Number of places provided1 | F174: Actual | G174: Actual | H174: Actual | I174: Actual | J174: =$J$54 -> Actual | K174: Forecast | L174: Forecast | M174: Forecast | N174: Forecast | O174: Forecast
D176: Primary | F176: 529859 | G176: 520060 | H176: 523982 | I176: 529722 | J176: 526590 | K176: 521335 | L176: 519913 | M176: 516463 | N176: 510429 | O176: 507688
D177: Secondary | F177: 294216 | G177: 297308.6 | H177: 303706 | I177: 315903 | J177: 322805 | K177: 325050 | L177: 324094 | M177: 321776 | N177: 320874 | O177: 318967
D179: 1. These are snapshots as at 1 July for primary year levels (years 1 to 8) and 1 March for secondary year levels (years 9 to 13). These numbers exclude home schooling.
D180: They are the number of full-time equivalent students enrolled in New Zealand schools, including State, State-integrated, Private-Fully Registered, Private-Provisionally Registered and other.
D182: Source: Ministry of Education
A184: Table 5.6 | D184: Tertiary funding
F185: =F$35 -> 2021 | G185: 2022 | H185: 2023 | I185: 2024 | J185: 2025 | K185: 2026 | L185: 2027 | M185: 2028 | N185: 2029 | O185: 2030
D186: ($millions) | F186: Actual | G186: Actual | H186: Actual | I186: Actual | J186: =$J$54 -> Actual | K186: Forecast | L186: Forecast | M186: Forecast | N186: Forecast | O186: Forecast
D188: Tuition1 | F188: 2019 | G188: 3205 | H188: 3135 | I188: 3197 | J188: 3272 | K188: 3246 | L188: 3295 | M188: 3238 | N188: 3145 | O188: 3147
D189: Other tertiary funding | F189: 698 | G189: 755 | H189: 729 | I189: 688 | J189: 649 | K189: 638 | L189: 583 | M189: 570 | N189: 570 | O189: 570
D190: Student allowances | F190: 590 | G190: 556 | H190: 525 | I190: 526 | J190: 574 | K190: 647 | L190: 702 | M190: 711 | N190: 700 | O190: 685
D191: Student loans | F191: 212 | G191: 288 | H191: 274 | I191: 603 | J191: 676 | K191: 790 | L191: 857 | M191: 858 | N191: 866 | O191: 885
D193: Tertiary education expenses | F193: =SUM(F188:F192) -> 3519 | G193: =SUM(G188:G192) -> 4804 | H193: 4663 | I193: =SUM(I188:I192) -> 5014 | J193: =SUM(J188:J192) -> 5171 | K193: =SUM(K188:K192) -> 5321 | L193: =SUM(L188:L192) -> 5437 | M193: =SUM(M188:M192) -> 5377 | N193: =SUM(N188:N192) -> 5281 | O193: 5287
D195: 1. The '2021 Actual' included a reduction in funding corresponding to increased funding in the year prior to provide revenue certainty to tertiary education organisations for the June to December 2020 period
D196: due to the impact of COVID-19. The timing of funding returned to normal from 2022.
D198: Source: The Treasury
F199: =F$35 -> 2021 | G199: 2022 | H199: 2023 | I199: =I$35 -> 2024 | J199: 2025 | K199: 2026 | L199: 2027 | M199: 2028 | N199: 2029 | O199: 2030
D200: Number of places provided1 | F200: Actual | G200: Actual | H200: Actual | I200: Actual | J200: =$J$54 -> Actual | K200: Forecast | L200: Forecast | M200: Forecast | N200: Forecast | O200: Forecast
D202: Actual delivered and estimated funded places | F202: 234350 | G202: 219862 | H202: 265152 | I202: 261283 | J202: 262884 | K202: 262500 | L202: 255400 | M202: 254600 | N202: 253400 | O202: 252900
D204: 1. Tertiary places are the number of equivalent full time (EFT) students in: student achievement component; adult and community education; and youth guarantee programmes.
D205: Place numbers are based on calendar years rather than fiscal years. Note that historical place numbers have been revised so may differ from previous published
D206: Economic and Fiscal Update numbers. The forecast number of places provided is based on the number of places that can be funded under the current funding and not a forecast
D207: based on demand. From 2023, places include Industry Training Funding.
D209: Source: Tertiary Education Commission
A211: Table 5.7 | D211: Core government service expenses
F212: =F$35 -> 2021 | G212: 2022 | H212: 2023 | I212: 2024 | J212: 2025 | K212: 2026 | L212: 2027 | M212: 2028 | N212: 2029 | O212: 2030
D213: ($millions) | F213: Actual | G213: Actual | H213: Actual | I213: Actual | J213: =$J$54 -> Actual | K213: Forecast | L213: Forecast | M213: Forecast | N213: Forecast | O213: Forecast
D215: Departmental expenses | F215: 2271 | G215: 2477 | H215: 2736 | I215: 2733 | J215: 2652 | K215: 2815 | L215: 2874 | M215: 2893 | N215: 2860 | O215: 2810
D216: International Development Cooperation | F216: 804 | G216: 827 | H216: 971 | I216: 1202 | J216: 953 | K216: 996 | L216: 1111 | M216: 982 | N216: 982 | O216: 982
D217: Tax receivable write-down and impairments | F217: 882 | G217: 662 | H217: 1453 | I217: 2393 | J217: 1872 | K217: 1550 | L217: 1375 | M217: 1385 | N217: 1330 | O217: 1305
D218: Non-departmental expenses1,2 | F218: 905 | G218: 928 | H218: 703 | I218: 401 | J218: 513 | K218: 470 | L218: 544 | M218: 531 | N218: 612 | O218: 726
D219: North Island weather events 2023 | F219: 0 | G219: 0 | H219: 0 | I219: 794 | J219: 960 | K219: 101 | L219: 2 | M219: 1 | N219: 0 | O219: 0
D220: Science expenses | F220: 121 | G220: 114 | H220: 128 | I220: 115 | J220: 119 | K220: 127 | L220: 83 | M220: 79 | N220: 65 | O220: 65
D221: Indemnity and guarantee expenses | F221: 6 | G221: 3 | H221: 24 | I221: 38 | J221: 34 | K221: 25 | L221: 24 | M221: 23 | N221: 23 | O221: 23
D222: Crown Research Institutes: COVID-19 | F222: 45 | G222: 0 | H222: 0 | I222: 0 | J222: 0 | K222: 0 | L222: 0 | M222: 0 | N222: 0 | O222: 0
D223: Shovel ready project funding | F223: 137 | G223: 0 | H223: 3 | I223: 14 | J223: 11 | K223: 0 | L223: 0 | M223: 0 | N223: 0 | O223: 0
D224: Other expenses1,2 | F224: 583 | G224: 709 | H224: 788 | I224: 778 | J224: 794 | K224: 513 | L224: 619 | M224: 445 | N224: 423 | O224: 393
D226: Core government service expenses | F226: =SUM(F215:F225) -> 5754 | G226: 5720 | H226: 6806 | I226: 8468 | J226: 7908 | K226: 6597 | L226: 6632 | M226: 6339 | N226: =SUM(N215:N225) -> 6295 | O226: 6304 | P226: 4829
D228: 1. The '2023 Actual' has been restated to update sub-classifications.
D229: 2. The '2025 Actual' has been restated to reclassify expenses from other non-departmental expenses to other expenses.
D231: Source: The Treasury
A233: Table 5.8 | D233: Law and order expenses
F234: =F$35 -> 2021 | G234: 2022 | H234: 2023 | I234: 2024 | J234: 2025 | K234: 2026 | L234: 2027 | M234: 2028 | N234: 2029 | O234: 2030
D235: ($millions) | F235: Actual | G235: Actual | H235: Actual | I235: Actual | J235: =$J$54 -> Actual | K235: Forecast | L235: Forecast | M235: Forecast | N235: Forecast | O235: Forecast
D237: Police | F237: 2079 | G237: 2206 | H237: 2476 | I237: 2630 | J237: 2716 | K237: 2890 | L237: 2845 | M237: 2662 | N237: 2602 | O237: 2602
D238: Department of Corrections | F238: 1641 | G238: 1645 | H238: 1798 | I238: 1952 | J238: 2077 | K238: 2283 | L238: 2387 | M238: 2412 | N238: 2434 | O238: 2417
D239: Ministry of Justice | F239: 642 | G239: 704 | H239: 748 | I239: 814 | J239: 821 | K239: 873 | L239: 900 | M239: 884 | N239: 862 | O239: 863
D240: NZ Customs Service1 | F240: 182 | G240: 200 | H240: 190 | I240: 197 | J240: 224 | K240: 251 | L240: 273 | M240: 289 | N240: 293 | O240: 293
D241: Other departments1 | F241: 178 | G241: 152 | H241: 231 | I241: 235 | J241: 200 | K241: 208 | L241: 242 | M241: 226 | N241: 226 | O241: 227
D243: Departmental expenses | F243: =SUM(F237:F241) -> 4722 | G243: 4907 | H243: =SUM(H237:H241) -> 5443 | I243: =SUM(I237:I241) -> 5828 | J243: =SUM(J237:J241) -> 6038 | K243: 6505 | L243: 6647 | M243: 6473 | N243: =SUM(N237:N241) -> 6417 | O243: 6402
D245: Non-departmental outputs | F245: 477 | G245: 537 | H245: 712 | I245: 646 | J245: 658 | K245: 721 | L245: 743 | M245: 693 | N245: 686 | O245: 684
D246: Other expenses | F246: 3 | G246: 0 | H246: 10 | I246: 53 | J246: 38 | K246: 56 | L246: 231 | M246: 264 | N246: 180 | O246: 189
D248: Law and order expenses | F248: =SUM(F243:F247) -> 5202 | G248: 5444 | H248: 6165 | I248: 6527 | J248: 6734 | K248: 7282 | L248: 7621 | M248: 7430 | N248: =SUM(N243:N247) -> 7283 | O248: 7275
D250: 1. The '2023 Actual' has been restated to update sub-classifications.
D252: Source: The Treasury
A254: Table 5.9 | D254: Transport and communication expenses
F255: =F$35 -> 2021 | G255: 2022 | H255: 2023 | I255: 2024 | J255: 2025 | K255: 2026 | L255: 2027 | M255: 2028 | N255: 2029 | O255: 2030
D256: ($millions) | F256: Actual | G256: Actual | H256: Actual | I256: Actual | J256: =$J$54 -> Actual | K256: Forecast | L256: Forecast | M256: Forecast | N256: Forecast | O256: Forecast
D258: Departmental outputs | F258: 73 | G258: 82 | H258: 124 | I258: 105 | J258: 87 | K258: 105 | L258: 76 | M258: 74 | N258: 72 | O258: 71
D259: Waka Kotahi NZ Transport Agency | F259: 3122 | G259: 2782 | H259: 2212 | I259: 3311 | J259: 3991 | K259: 3992 | L259: 3989 | M259: 4527 | N259: 4963 | O259: 5036
D260: Rail funding | F260: 13 | G260: 310 | H260: 567 | I260: 745 | J260: 758 | K260: 665 | L260: 460 | M260: 368 | N260: 249 | O260: 209
D261: Funding to support the aviation and transport industries | F261: 570 | G261: 554 | H261: 197 | I261: 89 | J261: 76 | K261: 0 | L261: 0 | M261: 0 | N261: 0 | O261: 0
D262: North Island weather events 2023 | F262: 0 | G262: 0 | H262: 250 | I262: 312 | J262: 191 | K262: 0 | L262: 0 | M262: 0 | N262: 0 | O262: 0
D263: Funding to support Waka Kotahi NZ Transport Agency due to impact of COVID-19 | F263: 322 | G263: 128 | H263: 18 | I263: 19 | J263: 62 | K263: 0 | L263: 0 | M263: 0 | N263: 0 | O263: 0
D264: Shovel ready project funding to Crown Infrastructure Partners | F264: 1035 | G264: 0 | H264: 0 | I264: 326 | J264: 0 | K264: 0 | L264: 0 | M264: 0 | N264: 0 | O264: 0
D265: Transport temporary relief package1 | G265: 411 | H265: 1613 | I265: 0 | J265: 0 | K265: 0 | L265: 0 | M265: 0 | N265: 0 | O265: 0
D266: Other non-departmental expenses | F266: 169 | G266: 200 | H266: 395 | I266: 317 | J266: 231 | K266: 190 | L266: 200 | M266: 146 | N266: 119 | O266: 119
... 86 more rows
